fUSD/lending_fUSD_20250503
["ID","MTS","AMOUNT","RATE_DAILY","PERIOD"]
[359701858,1746264645427,-450.0,0.00019764,2]
[359701859,1746264645436,-450.0,0.00019764,2]
[359701860,1746264645446,-450.0,0.00019764,2]
[359701861,1746264645455,-248.85891665,0.00019764,2]
[359701862,1746264645465,-551.05055594,0.00019764,2]
[359701863,1746264645474,-450.0,0.00019764,2]
[359701864,1746264645483,-450.0,0.00019764,2]
[359701865,1746264645495,-450.0,0.00019764,2]
[359701866,1746264645506,-450.0,0.00019764,2]
[359701867,1746264645515,-608.94,0.00019764,2]
[359701868,1746264645525,-450.0,0.00019764,2]
[359701869,1746264645534,-520.14886938,0.00019764,2]
[359701870,1746264645544,-450.0,0.00019764,2]
[359701871,1746264645555,-450.0,0.00019764,2]
[359701872,1746264645566,-460.25,0.00019764,2]
[359701873,1746264645576,-450.0,0.00019764,2]
[359701874,1746264645586,-450.0,0.00019764,2]
[359701875,1746264645596,-450.0,0.00019764,2]
[359701876,1746264645606,-450.0,0.00019764,2]
[359701877,1746264645616,-450.0,0.00019764,2]
[359701878,1746264645686,-450.0,0.00019764,2]
[359701879,1746264645694,-450.0,0.00019764,2]
[359701880,1746264645702,-450.0,0.00019764,2]
[359701881,1746264645712,-500.0,0.00019764,2]
[359701882,1746264645721,-500.0,0.00019764,2]
[359701883,1746264645730,-450.0,0.00019764,2]
[359701884,1746264645739,-2338.02,0.00019764,2]
[359701885,1746264645748,-835.9,0.00019764,2]
[359701886,1746264645757,-450.0,0.00019764,2]
[359701887,1746264645766,-450.0,0.00019764,2]
[359701888,1746264645775,-1018.39,0.00019764,2]
[359701889,1746264645784,-734.66,0.00019764,2]
[359701890,1746264645794,-450.0,0.00019764,2]
[359701891,1746264645803,-450.0,0.00019764,2]
[359701892,1746264645812,-451.7021702,0.00019764,2]
[359701893,1746264645822,-450.0,0.00019764,2]
[359701894,1746264645832,-450.0,0.00019764,2]
[359701895,1746264645841,-367.45052593,0.00019764,2]
[359701896,1746264645851,-2098.98,0.00019764,2]
[359701897,1746264645860,-450.0,0.00019764,2]
[359701898,1746264645870,-450.0,0.00019764,2]
[359701899,1746264645880,-450.0,0.00019764,2]
[359701900,1746264645889,-450.0,0.00019764,2]
[359701901,1746264645898,-450.0,0.00019764,2]
[359701903,1746264645911,-322.61977121,0.00019764,2]
[359701904,1746264645921,-450.0,0.00019764,2]
[359701905,1746264645930,-1611.35,0.00019764,2]
[359701906,1746264645939,-450.0,0.00019764,2]
[359701907,1746264645949,-912.24,0.00019764,2]
[359701908,1746264645958,-450.0,0.00019764,2]
[359701910,1746264645967,-452.17,0.00019764,2]
[359701911,1746264645978,-693.12,0.00019764,2]
[359701912,1746264645987,-14132.85,0.00019764,2]
[359701913,1746264645996,-450.0,0.00019764,2]
[359701914,1746264646005,-450.0,0.00019764,2]
[359701915,1746264646014,-450.0,0.00019764,2]
[359701916,1746264646023,-450.0,0.00019764,2]
[359701917,1746264646032,-450.0,0.00019764,2]
[359701918,1746264646042,-450.0,0.00019764,2]
[359701919,1746264646051,-450.0,0.00019764,2]
[359701920,1746264646060,-450.0,0.00019764,2]
[359701921,1746264646070,-574.03,0.00019764,2]
[359701922,1746264646081,-617.92,0.00019764,2]
[359701923,1746264646090,-1052.64,0.00019764,2]
[359701924,1746264646099,-450.0,0.00019764,2]
[359701925,1746264646108,-450.0,0.00019764,2]
[359701926,1746264646118,-450.0,0.00019764,2]
[359701927,1746264646127,-450.0,0.00019764,2]
[359701928,1746264646136,-450.0,0.00019764,2]
[359701929,1746264646145,-171.39471952,0.00019764,2]
[359701930,1746264646154,-450.0,0.00019764,2]
[359701931,1746264646165,-450.0,0.00019764,2]
[359701932,1746264646174,-450.0,0.00019764,2]
[359701933,1746264646183,-227.92209858,0.00019764,2]
[359701934,1746264646193,-450.0,0.00019764,2]
[359701935,1746264646202,-300.0,0.00019764,2]
[359701936,1746264646212,-704.21,0.00019764,2]
[359701937,1746264646221,-871.63,0.00019764,2]
[359701938,1746264646231,-574.71,0.00019764,2]
[359701939,1746264646241,-450.0,0.00019764,2]
[359701940,1746264646250,-450.0,0.00019764,2]
[359701941,1746264646259,-450.0,0.00019764,2]
[359701942,1746264646269,-450.0,0.00019764,2]
[359701943,1746264646278,-450.0,0.00019764,2]
[359701944,1746264646287,-462.1969945,0.00019764,2]
[359701945,1746264646297,-458.31690841,0.00019764,2]
[359701946,1746264646307,-462.58091417,0.00019764,2]
[359701947,1746264646317,-450.0,0.00019764,2]
[359701948,1746264646327,-450.0,0.00019764,2]
[359701949,1746264646336,-461.02025235,0.00019764,2]
[359701950,1746264646345,-450.0,0.00019764,2]
[359701951,1746264646355,-450.0,0.00019764,2]
[359701952,1746264646364,-450.0,0.00019764,2]
[359701953,1746264646374,-455.06729876,0.00019764,2]
[359701954,1746264646384,-450.0,0.00019764,2]
[359701955,1746264646393,-469.79272155,0.00019764,2]
[359701956,1746264646402,-450.0,0.00019764,2]
[359701957,1746264646412,-450.0,0.00019764,2]
[359701958,1746264646422,-2165.99,0.00019764,2]
[359701959,1746264646432,-557.73,0.00019764,2]
[359701960,1746264646442,-450.0,0.00019764,2]
[359701961,1746264646451,-450.0,0.00019764,2]
[359701962,1746264646460,-450.0,0.00019764,2]
[359701963,1746264646470,-469.52,0.00019764,2]
[359701964,1746264646480,-1012.91,0.00019764,2]
[359701965,1746264646490,-450.0,0.00019764,2]
[359701966,1746264646500,-450.0,0.00019764,2]
[359701967,1746264646509,-450.0,0.00019764,2]
[359701968,1746264646518,-450.0,0.00019764,2]
[359701969,1746264646527,-450.0,0.00019764,2]
[359701970,1746264646536,-470.69,0.00019764,2]
[359701971,1746264646545,-450.0,0.00019764,2]
[359701972,1746264646554,-450.0,0.00019764,2]
[359701973,1746264646563,-450.0,0.00019764,2]
[359701974,1746264646573,-467.11130523,0.00019764,2]
[359701975,1746264646582,-531.97,0.00019764,2]
[359701976,1746264646592,-450.0,0.00019764,2]
[359701977,1746264646601,-409.56184418,0.00019765,2]
[359701978,1746264646611,-550.43444147,0.00019766,2]
[359701979,1746264646621,-296.76811215,0.00019766,2]
[359701980,1746264646630,-456.39993995,0.00019766,2]
[359701981,1746264646640,-450.0,0.00019766,2]
[359701982,1746264646650,-451.8548283,0.00019766,2]
[359701983,1746264646660,-450.0,0.00019766,2]
[359701984,1746264646669,-171.7368711,0.00019766,2]
[359701985,1746264646679,-450.0,0.00019766,2]
[359701986,1746264646688,-500.0,0.00019773,2]
[359701987,1746264646698,-500.0,0.00019773,2]
[359701988,1746264646707,-500.0,0.00019773,2]
[359701989,1746264646716,-504.1525849,0.00019773,2]
[359701990,1746264646725,-500.0,0.00019773,2]
[359701991,1746264646734,-500.0,0.00019773,2]
[359701992,1746264646743,-500.0,0.00019773,2]
[359701993,1746264646753,-500.0,0.00019773,2]
[359701994,1746264646762,-500.0,0.00019773,2]
[359701995,1746264646771,-431.26260632,0.00019773,2]
[359701996,1746264646781,-500.0,0.00019773,2]
[359701997,1746264646790,-500.0,0.00019773,2]
[359701998,1746264646800,-249.96733796,0.00019773,2]
[359701999,1746264646809,-500.0,0.00019773,2]
[359702000,1746264646818,-150.0,0.00019773,2]
[359702001,1746264646827,-150.0,0.00019773,2]
[359702002,1746264646837,-500.0,0.00019773,2]
[359702003,1746264646846,-500.0,0.00019773,2]
[359702004,1746264646855,-150.0,0.00019773,2]
[359702005,1746264646864,-500.0,0.00019773,2]
[359702006,1746264646873,-500.0,0.00019773,2]
[359702007,1746264646882,-150.0,0.00019773,2]
[359702008,1746264646892,-500.0,0.00019773,2]
[359702009,1746264646901,-500.0,0.00019773,2]
[359702010,1746264646911,-191.08241789,0.00019773,2]
[359702011,1746264646920,-150.0,0.00019773,2]
[359702012,1746264646929,-500.0,0.00019774,2]
[359702013,1746264646938,-370.243055,0.00019774,2]
[359702014,1746264646947,-1128.47583292,0.00019791,2]
[359702015,1746264646957,-427.4149345,0.00019799,2]
[359702016,1746264646966,-150.0,0.000198,2]
[359702017,1746264646975,-225.68268607,0.000198,2]
[359702018,1746264646984,-1128.47583292,0.00019818,2]
[359702019,1746264646993,-500.0,0.0001984,2]
[359702020,1746264647002,-2000.0,0.0001984,2]
[359702021,1746264647012,-200.0,0.0001984,2]
[359702022,1746264647021,-1128.47583292,0.00019846,2]
[359702023,1746264647030,-1128.47583292,0.00019873,2]
[359702024,1746264647039,-241.55673044,0.00019886,2]
[359702025,1746264647048,-165.19492825,0.00019886,2]
[359702026,1746264647058,-3253.30568586,0.00019889,2]
[359702027,1746264647070,-151.0,0.00019898,2]
[359702028,1746264647084,-165.19492825,0.000199,2]
[359702029,1746264647093,-28599.50222021,0.000199,2]
[359702030,1746264647102,-3015.50152939,0.000199,3]
[359702031,1746264647111,-202.66468972,0.000199,2]
[359702032,1746264647121,-4775.51852272,0.000199,2]
[359702033,1746264647130,-1575.41791684,0.000199,2]
[359702034,1746264647139,-205.57268741,0.000199,3]
[359702035,1746264647148,-26636.98528898,0.000199,2]
[359702036,1746264647157,-1128.47583292,0.000199,2]
[359702037,1746264647168,-164.335077,0.000199,2]
[359702038,1746264647177,-151.0,0.00019906,2]
[359702039,1746264647186,-500.0,0.00019945,2]
[359702040,1746264647195,-514.0,0.0001997,2]
[359702041,1746264647204,-949.91977712,0.0001997,2]
[359702042,1746264647214,-500.0,0.00019973,2]
[359702043,1746264647223,-500.0,0.00019973,2]
[359702044,1746264647232,-500.0,0.00019973,2]
[359702045,1746264647241,-500.0,0.00019973,2]
[359702046,1746264647251,-501.21994559,0.00019973,2]
[359702047,1746264647260,-160.45164529,0.00019973,2]
[359702048,1746264647269,-532.23391832,0.00019973,2]
[359702049,1746264647279,-544.89074326,0.00019973,2]
[359702050,1746264647288,-506.33875235,0.00019973,2]
[359702051,1746264647298,-500.0,0.00019973,2]
[359702052,1746264647307,-502.58925245,0.00019973,2]
[359702053,1746264647316,-501.15741321,0.00019973,2]
[359702054,1746264647326,-78291.55581241,0.0001998,2]
[359702055,1746264647335,-500.0,0.00019985,2]
[359702056,1746264647345,-500.0,0.00019985,2]
[359702057,1746264647354,-40665.28617599,0.00019985,2]
[359702058,1746264647364,-500.0,0.00019985,2]
[359702059,1746264647373,-500.0,0.00019985,2]
[359702060,1746264647382,-1155.24,0.00019985,2]
[359702061,1746264647391,-1155.24,0.00019985,2]
[359702062,1746264647401,-2017.0,0.00019986,2]
[359702063,1746264647410,-255039.4979207,0.00019986,2]
[359702064,1746264647419,-36948.3668985,0.00019986,2]
[359702065,1746264647429,-11824.1152569,0.00019986,2]
[359702066,1746264647438,-4314.7530268,0.00019986,2]
[359702067,1746264647447,-949.91977712,0.0001999,2]
[359702068,1746264647456,-949.91977712,0.0001999,2]
[359702069,1746264647466,-151.0,0.00019991,2]
[359702070,1746264647476,-500.0,0.00019998,2]
[359702071,1746264647486,-500.0,0.00019998,2]
[359702072,1746264647495,-500.0,0.00019999,2]
[359702073,1746264647504,-300.0,0.00019999,2]
[359702074,1746264647514,-500.0,0.00019999,2]
[359702075,1746264647523,-679.71892541,0.00019999,2]
[359702076,1746264647533,-300.0,0.00019999,2]
[359702077,1746264647543,-300.0,0.00019999,2]
[359702078,1746264647552,-450.0,0.00019999,2]
[359702079,1746264647561,-450.0,0.00019999,2]
[359702080,1746264647571,-440.17498676,0.00019999,2]
[359702081,1746264647581,-547.90384288,0.00019999,2]
[359702082,1746264647591,-451.40881658,0.00019999,2]
[359702083,1746264647600,-450.0,0.00019999,2]
[359702084,1746264647609,-451.67237285,0.00019999,2]
[359702085,1746264647618,-566.16245869,0.00019999,2]
[359702086,1746264647627,-408.49519249,0.00019999,2]
[359702087,1746264647637,-304.80896757,0.00019999,2]
[359702088,1746264647648,-451.49895094,0.00019999,2]
[359702089,1746264647658,-450.0,0.00019999,2]
[359702090,1746264647668,-1001.1282,0.00019999,2]
[359702091,1746264647678,-628.07395844,0.00019999,2]
[359702092,1746264647688,-4153.92732628,0.00019999,2]
[359702093,1746264647697,-11505.31286126,0.00019999,2]
[359702094,1746264647707,-500.0,0.00019999,2]
[359702095,1746264647716,-500.0,0.00019999,2]
[359702096,1746264647725,-500.0,0.00019999,2]
[359702097,1746264647734,-500.0,0.00019999,2]
[359702098,1746264647743,-192.3518044,0.00019999,2]
[359702099,1746264647753,-66823.38330018,0.00019999,2]
[359702100,1746264647763,-500.0,0.00019999,2]
[359702101,1746264647772,-500.0,0.00019999,2]
[359702102,1746264647781,-500.0,0.00019999,2]
[359702103,1746264647790,-500.0,0.00019999,2]
[359702104,1746264647800,-587.97322185,0.00019999,2]
[359702105,1746264647809,-1155.24,0.00019999,2]
[359702106,1746264647819,-1155.24,0.00019999,2]
[359702107,1746264647829,-1155.24,0.00019999,2]
[359702108,1746264647838,-1155.24,0.00019999,2]
[359702109,1746264647848,-1155.24,0.00019999,2]
[359702110,1746264647857,-1155.24,0.00019999,2]
[359702111,1746264647867,-1155.24,0.00019999,2]
[359702112,1746264647877,-1155.24,0.00019999,2]
[359702113,1746264647887,-1155.24,0.00019999,2]
[359702114,1746264647897,-1155.24,0.00019999,2]
[359702115,1746264647907,-1155.24,0.00019999,2]
[359702116,1746264647918,-1155.24,0.00019999,2]
[359702117,1746264647929,-1155.24,0.00019999,2]
[359702118,1746264647938,-1155.24,0.00019999,2]
[359702119,1746264647947,-1155.24,0.00019999,2]
[359702120,1746264647957,-1155.24,0.00019999,2]
[359702121,1746264647966,-1155.24,0.00019999,2]
[359702122,1746264647975,-1155.24,0.00019999,2]
[359702123,1746264647985,-1155.33,0.00019999,2]
[359702124,1746264647994,-271.4745152,0.0002,2]
[359702125,1746264648003,-1228171.10428442,0.0002,2]
[359702126,1746264648012,-1619141.09526547,0.0002,2]
[359702127,1746264648344,-372.12210506,0.0002,2]
[359702128,1746264648364,-482.127,0.0002,2]
[359702129,1746264648683,-525.17372169,0.00019758,2]
[359702130,1746264648692,-1285.62627831,0.0002,2]
[359702131,1746264659778,152.52,0.00018952,2]
[359702132,1746264693323,1228.86733854,0.00029799,30]
[359702133,1746264860412,250.0,0.00018952,7]
[359702135,1746265134532,152.0,0.00015032,2]
[359702136,1746265147298,1000.0,0.0003,30]
[359702137,1746265158097,1000.0,0.0003,60]
[359702138,1746265163574,250.0,0.00017,2]
[359702139,1746265164641,300.0,0.00019,2]
[359702140,1746265181757,150.050318,0.0003,120]
[359702141,1746265194176,150.050318,0.0003,120]
[359702142,1746265402370,500.0,0.00018764,2]
[359702143,1746265472072,497.822367,0.00019468,2]
[359702144,1746265503104,150.050318,0.0003,30]
[359702145,1746265547096,169.04,0.00019178,2]
[359702146,1746265554561,150.050318,0.0003,31]
[359702147,1746265557967,150.050318,0.0003,32]
[359702148,1746265560342,1000.0,0.00018812,2]
[359702149,1746265561186,150.050318,0.0003,33]
[359702150,1746265564254,150.050318,0.0003,34]
[359702151,1746265569041,150.050318,0.0003,35]
[359702152,1746265572465,150.050318,0.0003,36]
[359702153,1746265575861,150.050318,0.0003,37]
[359702154,1746265579540,150.050318,0.0003,38]
[359702155,1746265582866,150.050318,0.0003,39]
[359702156,1746265587177,150.050318,0.0003,40]
[359702184,1746265730255,461.33,0.00016844,2]
[359702185,1746265730449,461.33,0.00019108,2]
[359702186,1746265746641,21326.96,0.00018758,2]
[359702189,1746265832277,-250.0,0.00019591,2]
[359702190,1746265832288,-200.0,0.00019616,2]
[359702191,1746265832299,-302.6022343,0.00019646,2]
[359702192,1746265832309,-343.79555923,0.00019646,2]
[359702193,1746265832332,-553.60220647,0.00019646,2]
[359702194,1746265832341,-300.0,0.00019646,2]
[359702195,1746265832350,-182.50779353,0.00019646,2]
[359702196,1746265832437,-117.49220647,0.00019646,2]
[359702197,1746265832447,-789.93308308,0.00019647,2]
[359702198,1746265832456,-138.03530519,0.00019647,2]
[359702199,1746265832468,-816.02988201,0.00019647,2]
[359702200,1746265832477,-52913.80567407,0.00019647,2]
[359702201,1746265832487,-789.93308304,0.00019675,2]
[359702202,1746265832497,-954.06518715,0.00019675,2]
[359702203,1746265832506,-200.0,0.00019699,2]
[359702204,1746265832515,-150.0,0.000197,2]
[359702205,1746265832524,-789.93308304,0.00019703,2]
[359702206,1746265832533,-954.06518715,0.00019703,2]
[359702207,1746265832543,-789.93308304,0.00019731,2]
[359702209,1746265832552,-954.06518715,0.00019731,2]
[359702211,1746265832561,-1100.0764714,0.00019737,2]
[359702213,1746265832570,-151.0,0.00019739,2]
[359702215,1746265832580,-668.65185757,0.00019739,2]
[359702217,1746265832589,-207.4,0.00019739,2]
[359702219,1746265832598,-150.0,0.00019745,2]
[359702221,1746265832607,-179.49569089,0.00019745,2]
[359702223,1746265832616,-500.0,0.00019745,2]
[359702225,1746265832625,-187.09103502,0.00019745,2]
[359702227,1746265832634,-205.59900197,0.00019745,2]
[359702229,1746265832644,-197.38176418,0.00019745,2]
[359702231,1746265832657,-456.6435915,0.00019745,2]
[359702233,1746265832666,-500.0,0.00019745,2]
[359702235,1746265832675,-500.0,0.00019745,2]
[359702237,1746265832684,-500.0,0.00019745,2]
[359702239,1746265832695,-500.0,0.00019745,2]
[359702241,1746265832704,-500.0,0.00019745,2]
[359702243,1746265832714,-500.0,0.00019745,2]
[359702245,1746265832723,-500.0,0.00019745,2]
[359702247,1746265832732,-500.0,0.00019745,2]
[359702249,1746265832742,-550.0,0.00019745,2]
[359702251,1746265832752,-500.0,0.00019745,2]
[359702253,1746265832761,-500.0,0.00019745,2]
[359702256,1746265832769,-500.0,0.00019745,2]
[359702259,1746265832779,-500.0,0.00019745,2]
[359702261,1746265832788,-500.0,0.00019745,2]
[359702263,1746265832797,-500.0,0.00019745,2]
[359702265,1746265832807,-500.0,0.00019745,2]
[359702267,1746265832816,-500.0,0.00019745,2]
[359702269,1746265832825,-500.0,0.00019745,2]
[359702271,1746265832834,-500.0,0.00019745,2]
[359702272,1746265832843,-500.0,0.00019745,2]
[359702274,1746265832853,-500.0,0.00019745,2]
[359702276,1746265832862,-500.0,0.00019745,2]
[359702278,1746265832871,-500.0,0.00019745,2]
[359702280,1746265832881,-500.0,0.00019745,2]
[359702282,1746265832890,-500.0,0.00019745,2]
[359702284,1746265832899,-500.0,0.00019745,2]
[359702286,1746265832908,-500.0,0.00019745,2]
[359702288,1746265832918,-500.0,0.00019745,2]
[359702313,1746265833138,-500.0,0.00019745,2]
[359702315,1746265833152,-500.0,0.00019745,2]
[359702318,1746265833163,-500.0,0.00019745,2]
[359702320,1746265833172,-500.0,0.00019745,2]
[359702322,1746265833181,-500.0,0.00019745,2]
[359702324,1746265833191,-500.0,0.00019745,2]
[359702325,1746265833201,-500.0,0.00019745,2]
[359702326,1746265833211,-500.0,0.00019745,2]
[359702327,1746265833221,-500.0,0.00019745,2]
[359702329,1746265833230,-500.0,0.00019745,2]
[359702331,1746265833240,-500.0,0.00019745,2]
[359702333,1746265833250,-500.0,0.00019745,2]
[359702335,1746265833259,-500.0,0.00019745,2]
[359702337,1746265833269,-500.0,0.00019745,2]
[359702339,1746265833278,-607.73084051,0.00019745,2]
[359702341,1746265833288,-500.0,0.00019745,2]
[359702343,1746265833298,-500.0,0.00019745,2]
[359702345,1746265833307,-500.0,0.00019745,2]
[359702347,1746265833317,-500.0,0.00019745,2]
[359702349,1746265833326,-500.0,0.00019745,2]
[359702351,1746265833335,-7724.57036723,0.00019745,2]
[359702353,1746265833344,-7724.57036723,0.00019745,2]
[359702355,1746265833354,-7724.57036723,0.00019745,2]
[359702357,1746265833363,-7724.57036723,0.00019745,2]
[359702359,1746265833373,-7724.57036723,0.00019745,2]
[359702361,1746265833383,-7724.57036723,0.00019745,2]
[359702363,1746265833393,-7724.57036723,0.00019745,2]
[359702365,1746265833402,-3820.47074585,0.00019745,2]
[359702383,1746265838279,-980.36841616,0.00019745,2]
[359702384,1746265838434,-2704.56,0.00019745,2]
[359702385,1746265838445,-219.17120522,0.00019745,2]
[359702386,1746265838454,-810.05625357,0.00019745,2]
[359702387,1746265838488,-447.89134999,0.00019745,2]
[359702388,1746265838499,-955.85070424,0.00019745,2]
[359702398,1746265840477,-5510.77205943,0.00019745,2]
[359702399,1746265840487,-7724.57036723,0.00019745,2]
[359702400,1746265840496,-7724.57036723,0.00019745,2]
[359702401,1746265840506,-7724.57036723,0.00019745,2]
[359702402,1746265840563,-7724.57036723,0.00019745,2]
[359702403,1746265840572,-7724.57036723,0.00019745,2]
[359702404,1746265840582,-7724.57036723,0.00019745,2]
[359702405,1746265840592,-7724.57036723,0.00019745,2]
[359702406,1746265840601,-7724.57036723,0.00019745,2]
[359702407,1746265840611,-7724.57036723,0.00019745,2]
[359702408,1746265840621,-7724.57036723,0.00019745,2]
[359702409,1746265840630,-7724.57036723,0.00019745,2]
[359702410,1746265840640,-7724.57036723,0.00019745,2]
[359702411,1746265840653,-7724.57036723,0.00019745,2]
[359702412,1746265840663,-7724.57036723,0.00019745,2]
[359702413,1746265840672,-7724.57036723,0.00019745,2]
[359702414,1746265840682,-7724.57036723,0.00019745,2]
[359702415,1746265840691,-7724.57036723,0.00019745,2]
[359702416,1746265840701,-7724.57036723,0.00019745,2]
[359702417,1746265840711,-7724.57036723,0.00019745,2]
[359702418,1746265840720,-7724.57036723,0.00019745,2]
[359702419,1746265840732,-7724.57036723,0.00019745,2]
[359702420,1746265840742,-7724.57036723,0.00019745,2]
[359702421,1746265840751,-7724.57036723,0.00019745,2]
[359702422,1746265840760,-7724.57036723,0.00019745,2]
[359702423,1746265840769,-7724.57036723,0.00019745,2]
[359702424,1746265840779,-7724.57036723,0.00019745,2]
[359702425,1746265840789,-7724.57036723,0.00019745,2]
[359702426,1746265840800,-7724.57036723,0.00019745,2]
[359702427,1746265840811,-7724.57036723,0.00019745,2]
[359702428,1746265840822,-7724.57036723,0.00019745,2]
[359702429,1746265840832,-7724.57036721,0.00019745,2]
[359702430,1746265840841,-7724.57036721,0.00019745,2]
[359702431,1746265840850,-7724.57036721,0.00019745,2]
[359702432,1746265840859,-7724.57036721,0.00019745,2]
[359702433,1746265840868,-7724.57036721,0.00019745,2]
[359702434,1746265840878,-7724.57036721,0.00019745,2]
[359702435,1746265840887,-7724.57036721,0.00019745,2]
[359702436,1746265840897,-7724.57036721,0.00019745,2]
[359702437,1746265840917,-450.0,0.00019746,2]
[359702438,1746265840927,-450.0,0.00019746,2]
[359702439,1746265840936,-610.47,0.00019746,2]
[359702440,1746265840945,-450.0,0.00019746,2]
[359702441,1746265840955,-450.0,0.00019746,2]
[359702443,1746265840965,-450.0,0.00019746,2]
[359702445,1746265840974,-450.0,0.00019746,2]
[359702446,1746265840983,-488.76,0.00019746,2]
[359702447,1746265840992,-450.0,0.00019746,2]
[359702448,1746265841001,-910.0,0.00019746,2]
[359702449,1746265841009,-450.0,0.00019746,2]
[359702451,1746265841019,-450.0,0.00019746,2]
[359702453,1746265841028,-245.33797676,0.00019746,2]
[359702455,1746265841038,-450.0,0.00019746,2]
[359702457,1746265841047,-505.09530994,0.00019746,2]
[359702459,1746265841056,-558.496663,0.00019746,2]
[359702461,1746265841065,-3695.94,0.00019746,2]
[359702463,1746265841075,-1564.05,0.00019746,2]
[359702465,1746265841084,-450.0,0.00019746,2]
[359702467,1746265841093,-450.0,0.00019746,2]
[359702469,1746265841102,-4841.38,0.00019746,2]
[359702471,1746265841112,-450.0,0.00019746,2]
[359702474,1746265841121,-450.0,0.00019746,2]
[359702476,1746265841130,-450.0,0.00019747,2]
[359702478,1746265841139,-450.0,0.00019747,2]
[359702479,1746265841148,-450.0,0.00019747,2]
[359702480,1746265841157,-197.45924436,0.00019747,2]
[359702481,1746265841166,-450.0,0.00019747,2]
[359702482,1746265841175,-450.0,0.00019747,2]
[359702483,1746265841184,-254.82179093,0.00019747,2]
[359702484,1746265841193,-581.89006525,0.00019747,2]
[359702485,1746265841202,-450.0,0.00019747,2]
[359702486,1746265841211,-154.47470558,0.00019747,2]
[359702487,1746265841220,-450.0,0.00019747,2]
[359702488,1746265841230,-450.0,0.00019747,2]
[359702489,1746265841238,-656.68,0.00019747,2]
[359702490,1746265841248,-450.0,0.00019747,2]
[359702491,1746265841260,-450.0,0.00019747,2]
[359702492,1746265841270,-450.0,0.00019747,2]
[359702493,1746265841279,-450.0,0.00019747,2]
[359702494,1746265841288,-450.0,0.00019747,2]
[359702495,1746265841297,-466.59846901,0.00019747,2]
[359702496,1746265841306,-450.0,0.00019747,2]
[359702497,1746265841316,-450.0,0.00019747,2]
[359702498,1746265841326,-450.0,0.00019747,2]
[359702499,1746265841335,-450.0,0.00019747,2]
[359702500,1746265841344,-450.0,0.00019747,2]
[359702501,1746265841355,-450.0,0.00019747,2]
[359702502,1746265841365,-450.0,0.00019747,2]
[359702503,1746265841374,-450.0,0.00019747,2]
[359702504,1746265841385,-514.11213861,0.00019747,2]
[359702505,1746265841394,-1784.35,0.00019747,2]
[359702506,1746265841403,-562.78124099,0.00019747,2]
[359702507,1746265841413,-460.75303461,0.00019747,2]
[359702508,1746265841423,-450.0,0.00019747,2]
[359702509,1746265841432,-450.0,0.00019747,2]
[359702510,1746265841443,-450.0,0.00019747,2]
[359702511,1746265841454,-450.0,0.00019747,2]
[359702512,1746265841463,-450.0,0.00019747,2]
[359702513,1746265841472,-450.0,0.00019747,2]
[359702514,1746265841481,-465.92322325,0.00019747,2]
[359702515,1746265841490,-450.0,0.00019747,2]
[359702516,1746265841500,-450.0,0.00019747,2]
[359702517,1746265841509,-450.0,0.00019747,2]
[359702518,1746265841518,-450.0,0.00019747,2]
[359702519,1746265841527,-460.92455464,0.00019747,2]
[359702520,1746265841538,-450.0,0.00019747,2]
[359702521,1746265841547,-470.42310011,0.00019747,2]
[359702522,1746265841556,-462.90583644,0.00019747,2]